bitfinex-derivatives/quotes_BTCF0:USTF0_20251213
["timestamp","ask_amount","ask_price","bid_price","bid_amount"]
[1765633653204,0.4430214,90286.0,90285.0,0.75035]
[1765633667032,0.0822214,90286.0,90285.0,0.75035]
[1765633671638,0.0536814,90286.0,90285.0,0.75035]
[1765633672441,0.0242114,90286.0,90285.0,0.75035]
[1765633679946,0.0518514,90286.0,90285.0,0.75035]
[1765633680149,0.02864,90286.0,90285.0,0.75035]
[1765633680445,0.05247095,90286.0,90285.0,0.75035]
[1765633681646,0.02483095,90286.0,90285.0,0.75035]
[1765633683743,0.05247095,90286.0,90285.0,0.75035]
[1765633688249,0.02483095,90286.0,90285.0,0.75035]
[1765633735102,0.05231095,90286.0,90285.0,0.75035]
[1765633735299,0.02483095,90286.0,90285.0,0.75035]
[1765633744220,0.00016613,90295.0,90294.0,0.06896]
[1765633744419,0.0110734,90299.0,90298.0,0.0861235]
[1765633747220,0.0140734,90299.0,90298.0,0.0861235]
[1765633747623,0.0415534,90299.0,90298.0,0.0861235]
[1765633747920,0.0445534,90299.0,90298.0,0.0861235]
[1765633748611,0.0170734,90299.0,90298.0,0.0861235]
[1765633750512,0.0445534,90299.0,90298.0,0.0861235]
[1765633751410,0.0170734,90299.0,90298.0,0.0861235]
[1765633751924,0.006,90299.0,90298.0,0.0861235]
[1765633756420,0.02960868,90299.0,90298.0,0.0861235]
[1765633756726,0.05708868,90299.0,90298.0,0.0861235]
[1765633757028,0.08504868,90299.0,90298.0,0.0861235]
[1765633764626,0.02960868,90299.0,90298.0,0.0861235]
[1765633769735,0.02851336,90299.0,90298.0,0.0861235]
[1765633771345,0.00298439,90299.0,90298.0,0.0861235]
[1765633773736,0.00298439,90299.0,90298.0,0.13839788]
[1765633773933,0.00016613,90308.0,90307.0,0.0675624]
[1765633774229,0.00016613,90308.0,90307.0,0.7588824]
[1765633775140,0.00316613,90308.0,90307.0,0.7588824]
[1765633775335,0.03296613,90308.0,90307.0,0.7588824]
[1765633775641,0.03596613,90308.0,90307.0,0.7588824]
[1765633776135,0.06391613,90308.0,90307.0,0.7588824]
[1765633782441,0.00616613,90308.0,90307.0,0.7588824]
[1765633783141,0.06391613,90308.0,90307.0,0.7588824]
[1765633783340,0.08723784,90308.0,90307.0,0.7588824]
[1765633783730,0.02948784,90308.0,90307.0,0.7588824]
[1765633789855,0.02948784,90308.0,90307.0,0.81077723]
[1765633790057,0.02948784,90308.0,90307.0,0.7588824]
[1765633791043,0.01698069,90308.0,90307.0,0.7588824]
[1765633792544,0.01698069,90308.0,90307.0,1.1196824]
[1765633795456,0.00016613,90317.0,90316.0,0.0687313]
[1765633795757,0.00016613,90317.0,90316.0,0.7599713]
[1765633796055,0.05727613,90317.0,90316.0,0.7599713]
[1765633796858,0.06027613,90317.0,90316.0,0.7599713]
[1765633797644,0.06427613,90317.0,90316.0,0.7599713]
[1765633798359,0.00716613,90317.0,90316.0,0.7599713]
[1765633798558,0.00716613,90317.0,90316.0,0.77116117]
[1765633800561,0.00416613,90317.0,90316.0,0.77216117]
[1765633800762,0.00016613,90317.0,90316.0,0.77216117]
[1765633803367,0.02346383,90317.0,90316.0,0.77216117]
[1765633804069,0.05293383,90317.0,90316.0,0.77216117]
[1765633804365,0.08057383,90317.0,90316.0,0.77216117]
[1765633807369,0.05293383,90317.0,90316.0,0.77216117]
[1765633808670,0.00016613,90317.0,90316.0,0.77216117]
[1765633812473,0.00016613,90317.0,90316.0,0.79005117]
[1765633815472,0.35333435,90324.0,90323.0,0.0674104]
[1765633816778,0.35433435,90324.0,90323.0,0.0674104]
[1765633817276,0.38380435,90324.0,90323.0,0.0674104]
[1765633818373,0.41144435,90324.0,90323.0,0.0674104]
[1765633818582,0.40902648,90324.0,90323.0,0.0674104]
[1765633818878,0.38138648,90324.0,90323.0,0.0674104]
[1765633819579,0.40902648,90324.0,90323.0,0.0674104]
[1765633819780,0.05811,90324.0,90323.0,0.0674104]
[1765633823686,0.03047,90324.0,90323.0,0.0674104]
[1765633824484,0.05811,90324.0,90323.0,0.0674104]
[1765633834087,0.03047,90324.0,90323.0,0.0674104]
[1765633834483,0.05834,90324.0,90323.0,0.0674104]
[1765633835082,0.001,90324.0,90323.0,0.0674104]
[1765633835392,0.001,90324.0,90323.0,0.12000343]
[1765633842898,0.001,90324.0,90323.0,0.17981951]
[1765633845194,0.001,90324.0,90323.0,0.12000343]
[1765633845500,0.001,90324.0,90323.0,0.17981951]
[1765633845889,0.001,90324.0,90323.0,0.90141951]
[1765633849911,0.001,90324.0,90323.0,0.84160343]
[1765633852304,0.001,90324.0,90323.0,1.53264343]
[1765633852706,0.00016613,90333.0,90323.0,1.53264343]
[1765633852707,0.00016613,90333.0,90332.0,0.0769593]
[1765633853000,0.00016613,90333.0,90332.0,1.1287993]
[1765633853203,0.00016613,90333.0,90332.0,1.18847792]
[1765633854302,0.00216613,90333.0,90332.0,1.1287993]
[1765633854907,3e-08,90333.0,90332.0,1.1287993]
[1765633855201,0.00200003,90333.0,90332.0,1.4895993]
[1765633856206,3e-08,90333.0,90332.0,1.4367993]
[1765633857304,0.05670988,90342.0,90341.0,0.0110682]
[1765633857505,0.05670988,90342.0,90341.0,1.1198682]
[1765633858613,0.05670988,90342.0,90341.0,1.1228682]
[1765633859517,0.05670988,90342.0,90341.0,1.1248682]
[1765633860803,0.07469988,90342.0,90341.0,1.1248682]
[1765633864110,0.07469988,90342.0,90341.0,1.1238682]
[1765633864509,0.07469988,90342.0,90341.0,1.1228682]
[1765633873819,0.07469988,90342.0,90341.0,0.7620682]
[1765633875712,0.05670988,90342.0,90341.0,0.7620682]
[1765633883224,0.06777798,90342.0,90341.0,0.751]
[1765633883432,0.05670988,90342.0,90341.0,0.751]
[1765633905129,0.06777798,90342.0,90341.0,0.751]
[1765633906725,0.05670988,90342.0,90341.0,0.751]
[1765633918144,0.02967988,90342.0,90341.0,0.751]
[1765633920354,0.05881988,90342.0,90341.0,0.751]
[1765633922045,0.02967988,90342.0,90341.0,0.751]
[1765633924058,0.00010988,90342.0,90341.0,0.751]
[1765633929253,0.00010988,90342.0,90341.0,1.1118]
[1765633932362,0.00010988,90342.0,90341.0,0.751]
[1765633932664,0.00010988,90342.0,90341.0,1.1118]
[1765633938557,0.00010988,90342.0,90341.0,0.751]
[1765633938764,0.00010988,90342.0,90341.0,1.1118]
[1765633956561,0.00010988,90342.0,90341.0,0.751]
[1765633956761,0.00010988,90342.0,90341.0,1.1118]
[1765633977173,0.00010988,90342.0,90341.0,1.17143895]
[1765633977374,0.00010988,90342.0,90341.0,1.1118]
[1765633978277,0.00010988,90342.0,90341.0,1.17157177]
[1765633978872,0.00010988,90342.0,90341.0,1.1118]
[1765633979181,0.05497,90360.0,90359.0,0.05676]
[1765633979373,0.05497,90360.0,90359.0,1.1084]
[1765633980269,0.05497,90360.0,90359.0,1.119466]
[1765633980580,0.05697,90360.0,90359.0,1.119466]
[1765633984087,0.05697,90360.0,90359.0,1.13047279]
[1765633994700,0.02921,90360.0,90359.0,1.13047279]
[1765633997308,0.05697,90360.0,90359.0,1.13047279]
[1765634000088,0.002,90360.0,90359.0,1.13047279]
[1765634010610,0.03133,90360.0,90359.0,1.13047279]
[1765634011213,0.06109,90360.0,90359.0,1.13047279]
[1765634021720,0.06109,90360.0,90359.0,0.76967279]
[1765634022019,0.06109,90360.0,90359.0,1.13047279]
[1765634026022,0.06109,90360.0,90359.0,0.76967279]
[1765634026319,0.06109,90360.0,90359.0,1.13047279]
[1765634028322,0.03133,90360.0,90359.0,1.13047279]
[1765634032426,0.06109,90360.0,90359.0,1.13047279]
[1765634033035,0.06109,90360.0,90359.0,1.17031756]
[1765634034629,0.06109,90360.0,90359.0,0.80951756]
[1765634034820,0.06109,90360.0,90359.0,1.17031756]
[1765634036634,0.03133,90360.0,90359.0,1.17031756]
[1765634039435,0.002,90360.0,90359.0,1.17031756]
[1765634040934,0.03151,90360.0,90359.0,1.17031756]
[1765634041731,0.03151,90360.0,90359.0,0.80951756]
[1765634041939,0.03151,90360.0,90359.0,1.17031756]
[1765634042237,0.05994,90360.0,90359.0,1.17031756]
[1765634043032,0.05994,90360.0,90359.0,0.80951756]
[1765634043238,0.05994,90360.0,90359.0,1.17031756]
[1765634044541,0.05994,90360.0,90359.0,0.80951756]
[1765634044740,0.05994,90360.0,90359.0,1.17031756]
[1765634045645,0.03151,90360.0,90359.0,1.17031756]
[1765634048845,0.05994,90360.0,90359.0,1.17031756]
[1765634049549,0.05994,90360.0,90359.0,1.15925156]
[1765634053048,0.05994,90360.0,90359.0,1.11940679]
[1765634054853,0.03151,90360.0,90359.0,1.11940679]
[1765634057158,0.05994,90360.0,90359.0,1.11940679]
[1765634057754,0.05994,90360.0,90359.0,1.1084]
[1765634057949,0.07662,90360.0,90359.0,0.7476]
[1765634060456,0.05994,90360.0,90359.0,0.7476]
[1765634073480,0.07752,90360.0,90359.0,0.7476]
[1765634073671,0.07752,90360.0,90359.0,0.05676]
[1765634074471,0.07752,90360.0,90350.0,0.16580891]
[1765634074472,0.067707,90351.0,90350.0,0.02618004]
[1765634074673,0.428507,90351.0,90350.0,0.02618004]
[1765634074872,0.428507,90351.0,90350.0,4e-08]
[1765634076474,0.428507,90351.0,90350.0,0.00100004]
[1765634077269,0.371867,90351.0,90350.0,4e-08]
[1765634078082,0.373867,90351.0,90350.0,4e-08]
[1765634078481,0.0852881,90342.0,90341.0,4e-08]
[1765634078680,0.4460881,90342.0,90341.0,4e-08]
[1765634078872,0.46948671,90342.0,90341.0,4e-08]
[1765634080075,0.0405995,90331.0,90330.0,0.1078081]
[1765634080274,0.0405995,90331.0,90329.0,0.39452]
[1765634080275,0.01758,90330.0,90329.0,0.39452]
[1765634080573,0.04097861,90330.0,90329.0,0.40587721]
[1765634081365,0.01758,90330.0,90329.0,0.40587721]
[1765634081572,0.07422,90330.0,90329.0,0.40587721]
[1765634083281,0.07422,90330.0,90329.0,0.40687721]
[1765634083972,0.07422,90330.0,90329.0,0.39552]
[1765634084172,0.07422,90324.0,90322.0,0.01121297]
[1765634084368,0.07422,90324.0,90321.0,0.3608]
[1765634084575,0.07422,90321.0,90320.0,0.00016604]
[1765634085985,0.07422,90321.0,90320.0,0.06947488]
[1765634087587,0.07422,90321.0,90320.0,0.05848604]
[1765634088274,0.07522,90321.0,90320.0,0.05848604]
[1765634089779,0.0286518,90312.0,90311.0,0.1078081]
[1765634089988,0.0677124,90307.0,90306.0,0.6910598]
[1765634090191,0.0677124,90307.0,90306.0,0.70225051]
[1765634090694,0.0110724,90307.0,90306.0,0.70225051]
[1765634091593,0.0110724,90307.0,90306.0,0.70425051]
[1765634092486,0.0110724,90307.0,90306.0,0.70525051]
[1765634093193,0.0677124,90307.0,90306.0,0.0030998]
[1765634093783,0.0677124,90307.0,90306.0,0.0020998]
[1765634094496,0.0677124,90307.0,90306.0,0.0010998]
[1765634094686,0.0677124,90307.0,90306.0,0.0020998]
[1765634095088,0.0677124,90307.0,90306.0,0.0010998]
[1765634095289,0.0687124,90307.0,90306.0,0.0010998]
[1765634095483,0.0697124,90307.0,90306.0,9.98e-05]
[1765634096188,0.0687124,90307.0,90306.0,9.98e-05]
[1765634096388,0.0697124,90307.0,90306.0,9.98e-05]
[1765634097489,0.0862135,90298.0,90297.0,0.10814369]
[1765634097796,0.0862135,90298.0,90297.0,0.00016604]
[1765634098482,0.08632281,90298.0,90297.0,0.00016604]
[1765634099191,0.08632281,90298.0,90297.0,0.00116604]
[1765634100995,0.08632281,90298.0,90297.0,0.00016604]
[1765634101197,0.08632281,90298.0,90297.0,0.00116604]
[1765634101395,0.01118281,90298.0,90297.0,0.00116604]
[1765634102491,0.01118281,90298.0,90297.0,0.01223964]
[1765634102894,0.05715281,90298.0,90297.0,0.01223964]
[1765634104700,0.10276281,90298.0,90297.0,0.01323964]
[1765634104995,0.10276281,90298.0,90297.0,0.01223964]
[1765634105196,0.10276281,90298.0,90297.0,0.01423964]
[1765634105698,0.10276281,90298.0,90297.0,0.01223964]
[1765634105902,0.10276281,90298.0,90297.0,0.01423964]
[1765634108198,0.10276281,90298.0,90297.0,0.01323964]
[1765634108398,0.10276281,90298.0,90297.0,0.01423964]
[1765634109006,0.00010931,90298.0,90297.0,0.01423964]
[1765634111193,0.00010931,90298.0,90297.0,0.01323964]
[1765634111393,0.00010931,90298.0,90297.0,0.01423964]
[1765634112902,0.09168931,90298.0,90297.0,0.37503964]
[1765634113098,0.04607931,90298.0,90297.0,0.37503964]
[1765634114289,0.06947242,90298.0,90297.0,0.37503964]
[1765634114491,0.00010931,90298.0,90297.0,0.37503964]
[1765634121608,0.02354944,90298.0,90297.0,0.37503964]
[1765634122105,0.00010931,90298.0,90297.0,0.37503964]
[1765634129414,0.00010931,90298.0,90297.0,0.01423964]
[1765634129614,0.00010931,90298.0,90297.0,0.37503964]
[1765634135916,0.00010931,90298.0,90297.0,0.43480679]
[1765634137718,0.00010931,90298.0,90297.0,0.79560679]
[1765634139220,0.00010931,90298.0,90297.0,0.73583964]
[1765634143112,0.00010931,90298.0,90297.0,0.01423964]
[1765634143313,0.00010931,90298.0,90297.0,0.73583964]
[1765634144322,0.02407931,90298.0,90297.0,0.73583964]
[1765634145023,0.02407931,90298.0,90297.0,0.01423964]
[1765634145324,0.02407931,90298.0,90297.0,0.73583964]
[1765634148724,0.02407931,90298.0,90297.0,0.01423964]
[1765634148921,0.02407931,90298.0,90297.0,0.73583964]
[1765634153330,0.04762389,90298.0,90297.0,0.73583964]
[1765634160642,0.04762389,90298.0,90297.0,0.01423964]
[1765634160829,0.04762389,90298.0,90297.0,0.73583964]
[1765634163338,0.02407931,90298.0,90297.0,0.73583964]
[1765634164037,0.02407931,90298.0,90297.0,0.01423964]
[1765634164238,0.02407931,90298.0,90297.0,0.73583964]
[1765634170339,0.02407931,90298.0,90297.0,0.01423964]
[1765634170642,0.02407931,90298.0,90297.0,0.73583964]
[1765634172541,0.02407931,90298.0,90297.0,0.01423964]
[1765634172744,0.02407931,90298.0,90297.0,0.73583964]
[1765634175851,0.06055931,90298.0,90297.0,0.73583964]
[1765634176748,0.02407931,90298.0,90297.0,0.73583964]
[1765634177051,0.02407931,90298.0,90297.0,0.01423964]
[1765634177242,0.02407931,90298.0,90297.0,0.73583964]
[1765634179649,0.02407931,90298.0,90297.0,2.23583964]
[1765634183551,0.02407931,90298.0,90297.0,1.51423964]
[1765634183752,0.02407931,90298.0,90297.0,2.23583964]
[1765634189359,0.02407931,90298.0,90297.0,1.51423964]
[1765634189551,0.02407931,90298.0,90297.0,2.23583964]
[1765634193774,0.05840931,90298.0,90297.0,2.23583964]
[1765634195378,0.02407931,90298.0,90297.0,2.23583964]
[1765634195873,0.05840931,90298.0,90297.0,2.23583964]
[1765634197569,0.02407931,90298.0,90297.0,2.23583964]
[1765634200073,0.05840931,90298.0,90297.0,1.51423964]
[1765634200265,0.05840931,90298.0,90297.0,2.23583964]
[1765634203174,0.08187858,90298.0,90297.0,2.23583964]
[1765634203770,0.11633858,90298.0,90297.0,2.23583964]
[1765634209389,0.11633858,90298.0,90297.0,1.51423964]
[1765634209690,0.11633858,90298.0,90297.0,2.23583964]
[1765634213387,0.11633873,90298.0,90297.0,2.22476604]
[1765634214689,0.11633873,90298.0,90297.0,1.86396604]
[1765634215491,0.11633873,90298.0,90297.0,1.92377662]
[1765634217283,0.11633873,90298.0,90297.0,0.42377662]
[1765634217489,0.11633873,90298.0,90297.0,0.43485022]
[1765634219589,0.11633873,90298.0,90297.0,0.07405022]
[1765634221187,0.11633873,90298.0,90297.0,0.06297662]
[1765634228002,0.09286931,90298.0,90297.0,0.00316604]
[1765634233305,0.09286931,90298.0,90297.0,1.50316604]
[1765634238596,0.09286931,90298.0,90297.0,1.86396604]
[1765634239307,0.11625898,90298.0,90297.0,1.86396604]
[1765634240402,0.11625898,90298.0,90297.0,1.50316604]
[1765634240612,0.11625898,90298.0,90297.0,1.86396604]
[1765634242498,0.11625898,90298.0,90297.0,1.50316604]
[1765634242694,0.11625898,90298.0,90297.0,1.86396604]
[1765634244011,0.11625898,90298.0,90297.0,1.92377526]
[1765634250404,0.11625898,90298.0,90297.0,1.56297526]
[1765634250612,0.11625898,90298.0,90297.0,1.92377526]
[1765634251509,0.11625898,90298.0,90297.0,1.56297526]
[1765634251916,0.11625898,90298.0,90297.0,1.92377526]
[1765634253213,0.11625898,90298.0,90297.0,1.86396604]
[1765634256516,0.09286931,90298.0,90297.0,1.86396604]
[1765634256717,0.11626274,90298.0,90297.0,1.86396604]
[1765634258413,0.11626274,90298.0,90297.0,1.50316604]
[1765634258619,0.11626274,90298.0,90297.0,1.86396604]
[1765634263220,0.09286931,90298.0,90297.0,1.86396604]
[1765634265015,0.09286931,90298.0,90297.0,1.50316604]
[1765634265221,0.09286931,90298.0,90297.0,1.86396604]
[1765634265420,0.09286931,90298.0,90297.0,1.50316604]
[1765634265621,0.09286931,90298.0,90297.0,1.86396604]
[1765634272525,0.09286931,90298.0,90297.0,1.50316604]
[1765634272823,0.09286931,90298.0,90297.0,1.86396604]
[1765634275730,0.08565931,90298.0,90297.0,1.86396604]
[1765634276719,0.02407931,90298.0,90297.0,1.86396604]
[1765634276936,0.05344931,90298.0,90297.0,1.86396604]
[1765634277135,0.08069931,90298.0,90297.0,1.86396604]
[1765634286349,0.08069931,90298.0,90297.0,1.50316604]
[1765634286547,0.08069931,90298.0,90297.0,1.86396604]
[1765634289757,0.08069931,90298.0,90297.0,0.36396604]
[1765634289952,0.10407852,90298.0,90297.0,0.42378536]
[1765634290751,0.11515202,90298.0,90297.0,0.42378536]
[1765634291250,0.11515202,90298.0,90297.0,0.36396604]
[1765634292156,0.11515202,90298.0,90297.0,0.36296604]
[1765634294157,0.11515202,90298.0,90297.0,0.37403964]
[1765634299162,0.11515202,90298.0,90297.0,0.36296604]
[1765634299664,0.11515202,90298.0,90297.0,1.05408604]
[1765634315673,0.11515202,90298.0,90297.0,1.11390536]
[1765634315879,0.11515202,90298.0,90297.0,1.05408604]
[1765634316375,0.11515202,90298.0,90297.0,1.11390536]
[1765634316768,0.11515202,90298.0,90297.0,1.05408604]
[1765634317369,0.11515202,90298.0,90297.0,1.11390536]
[1765634318079,0.11515202,90298.0,90297.0,1.05408604]
[1765634323185,0.11515202,90298.0,90297.0,1.11390536]
[1765634325281,0.11515202,90298.0,90297.0,0.42278536]
[1765634325485,0.11515202,90298.0,90297.0,1.05408604]
[1765634340499,0.11515202,90298.0,90297.0,0.69328604]
[1765634340703,0.11515202,90298.0,90297.0,1.05408604]
[1765634340998,0.11515202,90298.0,90297.0,1.06515964]
[1765634340999,0.05853202,90298.0,90297.0,1.06515964]
[1765634341292,0.04745852,90298.0,90297.0,1.06515964]
[1765634342398,0.04745852,90298.0,90297.0,0.70435964]
[1765634342598,0.04745852,90298.0,90297.0,1.06515964]
[1765634345901,0.04745852,90298.0,90297.0,1.05408604]
[1765634348602,0.04745852,90298.0,90297.0,1.06515964]
[1765634349406,0.04745852,90298.0,90297.0,0.70435964]
[1765634349605,0.04745852,90298.0,90297.0,1.06515964]
[1765634353509,0.07706852,90298.0,90297.0,1.06515964]
[1765634362618,0.10607852,90298.0,90297.0,1.06515964]
[1765634367012,0.10607852,90298.0,90297.0,0.70435964]
[1765634367312,0.10607852,90298.0,90297.0,1.06515964]
[1765634368119,0.10607852,90298.0,90297.0,0.70435964]
[1765634368319,0.10607852,90298.0,90297.0,1.06515964]
[1765634368715,0.10607852,90298.0,90297.0,0.70435964]
[1765634368918,0.10607852,90298.0,90297.0,1.06515964]
[1765634370730,0.10607852,90298.0,90297.0,1.05408604]
[1765634375625,0.10607852,90298.0,90297.0,0.69328604]
[1765634375830,0.10607852,90298.0,90297.0,1.05408604]
[1765634376423,0.10607852,90298.0,90297.0,0.69328604]
[1765634376613,0.10607852,90298.0,90297.0,1.05408604]
[1765634379024,0.08269931,90298.0,90297.0,0.75310536]
[1765634379231,0.08269931,90298.0,90297.0,1.11390536]
[1765634383332,0.08269931,90298.0,90297.0,1.05408604]
[1765634392741,0.08269931,90298.0,90297.0,0.69328604]
[1765634393040,0.08269931,90298.0,90297.0,1.05408604]
[1765634393341,0.08269931,90298.0,90297.0,1.11390536]
[1765634400444,0.02407931,90298.0,90297.0,1.11390536]
[1765634401238,0.00010931,90298.0,90297.0,1.05408604]
[1765634401434,0.01664,90307.0,90306.0,0.0110725]
[1765634401641,0.01664,90307.0,90306.0,1.0629925]
[1765634402040,0.01664,90309.0,90306.0,1.0629925]
[1765634402241,0.01664,90322.0,90315.0,0.0110714]
[1765634402548,0.01664,90322.0,90315.0,1.0629914]
[1765634403045,0.01664,90322.0,90315.0,1.15181819]
[1765634404243,0.01664,90339.0,90315.0,1.54074679]
[1765634404545,0.01664,90351.0,90350.0,0.0110671]
[1765634404847,0.00802738,90357.0,90354.0,0.0110666]
[1765634405446,0.00016604,90365.0,90364.0,0.0110654]
[1765634405644,0.00016604,90365.0,90364.0,1.12290845]
[1765634405852,0.00016604,90365.0,90364.0,1.0634254]
[1765634406150,0.00016604,90365.0,90364.0,1.1030041]
[1765634406345,0.01664,90375.0,90371.0,0.0110646]
[1765634406644,0.01664,90375.0,90374.0,0.3608]
[1765634407348,0.07413,90375.0,90374.0,0.3608]
[1765634407947,0.05749,90366.0,90365.0,0.00016604]
[1765634408259,0.05749,90366.0,90365.0,0.69168604]
[1765634409843,0.0566448,90370.0,90365.0,0.69168604]
[1765634410050,0.0851948,90370.0,90365.0,0.69368604]
[1765634410948,0.05849,90366.0,90365.0,0.69368604]
[1765634411548,0.05749,90366.0,90365.0,0.69368604]
[1765634411748,0.05749,90366.0,90365.0,0.69468604]
[1765634411952,0.05749,90366.0,90365.0,0.69368604]
[1765634417264,0.41829,90366.0,90365.0,0.69368604]
[1765634417850,0.068557,90351.0,90350.0,1.3844]
[1765634420457,0.02855,90350.0,90349.0,0.69132]
[1765634420655,0.05749,90350.0,90349.0,0.69132]
[1765634435162,0.0858579,90344.0,90343.0,0.3608]
[1765634436472,0.05819,90342.0,90341.0,0.00016604]
[1765634437768,0.05819,90342.0,90341.0,0.00116604]
[1765634438976,0.08141952,90342.0,90341.0,0.00116604]
[1765634439375,0.08141952,90342.0,90341.0,0.00216604]
[1765634446382,0.09801952,90342.0,90341.0,0.00216604]
[1765634468703,0.09801952,90342.0,90341.0,0.01323424]
[1765634473516,0.09801952,90342.0,90341.0,0.00216604]
[1765634477728,0.09806838,90342.0,90341.0,0.00216604]
[1765634495138,0.09806838,90342.0,90341.0,0.00116604]
[1765634495341,0.09806838,90342.0,90341.0,0.00216604]
[1765634496934,0.09806838,90342.0,90341.0,0.00116604]
[1765634497138,0.09806838,90342.0,90341.0,0.00216604]
[1765634498939,0.07479,90342.0,90341.0,0.00216604]
[1765634500931,0.07479,90342.0,90341.0,0.00116604]
[1765634501230,0.07479,90342.0,90341.0,0.00216604]
[1765634501738,0.07479,90342.0,90341.0,0.00116604]
[1765634512733,0.07479,90342.0,90341.0,0.00016604]
[1765634512934,0.07479,90342.0,90341.0,0.00116604]
[1765634513946,0.07479,90342.0,90341.0,0.00016604]
[1765634514138,0.07479,90342.0,90341.0,0.00116604]
[1765634517337,0.07479,90342.0,90341.0,0.00016604]
[1765634517634,0.07479,90342.0,90341.0,0.00116604]
[1765634519751,0.07479,90342.0,90341.0,0.00016604]
[1765634520048,0.07479,90342.0,90341.0,0.00116604]
[1765634520648,0.07479,90342.0,90341.0,0.00016604]
[1765634521235,0.07479,90342.0,90337.0,0.3608]
[1765634521236,0.0873786,90338.0,90337.0,0.3608]
[1765634521437,0.05852,90329.0,90328.0,0.05936805]
[1765634521637,0.07631,90328.0,90327.0,0.3156]
[1765634521836,0.05852,90327.0,90326.0,0.07018994]
[1765634522250,0.0695899,90327.0,90326.0,0.01082189]
[1765634522551,0.05852,90325.0,90324.0,0.05936805]
[1765634523048,0.08202158,90325.0,90324.0,0.05936805]
[1765634523245,0.08202158,90325.0,90324.0,0.01119617]
[1765634523440,0.07631,90324.0,90323.0,0.6912]
[1765634523646,0.11088188,90324.0,90323.0,0.6912]
[1765634524147,0.11088188,90324.0,90323.0,0.7021665]
[1765634524849,0.11088188,90324.0,90323.0,0.7031665]
[1765634525044,0.11088188,90324.0,90323.0,0.7041665]
[1765634525244,0.11088188,90324.0,90323.0,0.001]
[1765634525448,0.11088188,90324.0,90317.0,0.36096604]
[1765634525449,0.0873811,90318.0,90317.0,0.00016604]
[1765634525642,0.11088268,90318.0,90317.0,0.00016604]
[1765634526448,0.11098974,90318.0,90317.0,0.00016604]
[1765634527344,0.11198974,90318.0,90317.0,0.00016604]
[1765634529747,0.11098974,90318.0,90317.0,0.00016604]
[1765634530057,0.11198974,90318.0,90317.0,0.00016604]
[1765634533457,0.08848816,90318.0,90317.0,0.00016604]
[1765634535971,0.07741706,90318.0,90317.0,0.00016604]
[1765634536663,0.08848816,90318.0,90317.0,0.00016604]
[1765634537866,0.08848816,90318.0,90317.0,0.02853604]
[1765634540983,0.08848816,90318.0,90317.0,0.00016604]
[1765634542079,0.11197789,90318.0,90317.0,0.00016604]
[1765634545274,0.0680515,90314.0,90313.0,0.69128]
[1765634545479,0.09154123,90314.0,90313.0,0.69128]
[1765634548295,0.09254123,90314.0,90313.0,0.69128]
[1765634548492,0.09354123,90314.0,90313.0,0.69128]
[1765634550890,0.45434123,90314.0,90313.0,0.69128]
[1765634556195,0.45434123,90314.0,90313.0,0.72081]
[1765634558196,0.45434123,90314.0,90313.0,0.69128]
[1765634558498,0.05698,90305.0,90304.0,0.06785884]
[1765634558690,0.08046973,90305.0,90304.0,0.06785884]
[1765634559194,0.08046973,90305.0,90304.0,0.07911802]
[1765634559888,0.08046973,90305.0,90304.0,0.08011802]
[1765634562391,0.08046973,90305.0,90304.0,0.06904522]
[1765634562697,0.08046973,90305.0,90304.0,0.04195522]
[1765634563483,0.08046973,90305.0,90304.0,0.06904522]
[1765634595924,0.08046973,90305.0,90304.0,0.05778604]
[1765634608730,0.08072361,90305.0,90304.0,0.05778604]
[1765634621429,0.08072361,90305.0,90304.0,0.00116604]
[1765634622632,0.44152361,90305.0,90304.0,0.00116604]
[1765634624443,0.4412973,90305.0,90304.0,0.00116604]
[1765634626340,0.50088267,90305.0,90304.0,0.00116604]
[1765634628237,0.4412973,90305.0,90304.0,0.00116604]
[1765634635655,0.0804973,90305.0,90304.0,0.00116604]
[1765634635854,0.8020973,90305.0,90304.0,0.00116604]
[1765634636054,0.8020973,90305.0,90304.0,0.02851604]
[1765634636754,0.8020973,90305.0,90304.0,0.00116604]
[1765634639259,0.8020973,90305.0,90304.0,0.05711604]
[1765634640552,0.80207256,90305.0,90304.0,0.05711604]
[1765634642464,0.41213256,90305.0,90304.0,0.05711604]
[1765634642847,0.38429256,90305.0,90304.0,0.05711604]
[1765634644265,0.44056256,90305.0,90304.0,0.05711604]
[1765634655774,0.04511,90308.0,90307.0,0.05595]
[1765634655974,0.05144951,90308.0,90307.0,0.05595]
[1765634656183,0.36090706,90318.0,90313.0,0.0670217]
[1765634656475,0.05160944,90314.0,90313.0,0.0670217]
[1765634656779,0.00016604,90314.0,90313.0,0.0670217]
[1765634657887,0.00116604,90314.0,90313.0,0.0670217]
[1765634658571,0.00116604,90314.0,90313.0,0.0690217]
[1765634659173,0.00116604,90314.0,90313.0,0.0670217]
[1765634659367,0.00016604,90314.0,90313.0,0.0720217]
[1765634660585,0.05643604,90314.0,90313.0,0.0720217]
[1765634660786,0.06750754,90314.0,90313.0,0.0720217]
[1765634661080,0.06750754,90314.0,90313.0,0.005]
[1765634661383,0.42830754,90314.0,90313.0,0.005]
[1765634662180,0.42830754,90314.0,90313.0,0.003]
[1765634662676,0.05627,90310.0,90309.0,0.0670221]
[1765634663370,0.05627,90310.0,90309.0,0.05595]
[1765634663569,0.05627,90310.0,90309.0,0.0286]
[1765634665383,0.05627,90310.0,90309.0,0.05595]
[1765634667281,0.05627,90310.0,90309.0,0.05695]
[1765634667879,0.05627,90310.0,90309.0,0.05795]
[1765634670387,0.07974664,90310.0,90309.0,0.05795]
[1765634672387,0.07974664,90310.0,90309.0,0.002]
[1765634674091,0.07974664,90310.0,90309.0,0.001]
[1765634674684,0.07686,90308.0,90307.0,0.69148]
[1765634674881,0.10033664,90308.0,90307.0,0.69148]
[1765634675580,0.10033664,90308.0,90307.0,0.72096]
[1765634676182,0.10033664,90308.0,90307.0,0.69148]
[1765634676493,0.10033664,90308.0,90307.0,0.72096]
[1765634680299,0.10033664,90308.0,90307.0,0.75035]
[1765634683904,0.46113664,90308.0,90307.0,0.75035]
[1765634684705,0.46113664,90308.0,90307.0,0.72096]
[1765634685106,0.46113664,90308.0,90307.0,0.75035]
[1765634688909,0.46113664,90308.0,90307.0,0.72096]
[1765634689698,0.46113664,90308.0,90307.0,0.75035]
[1765634690403,0.46113664,90308.0,90307.0,0.69148]
[1765634691306,0.46113664,90308.0,90307.0,0.72096]
[1765634693599,0.46113664,90308.0,90307.0,0.75035]
[1765634700899,0.46121521,90308.0,90307.0,0.75035]
[1765634728321,0.10041521,90308.0,90307.0,0.75035]
[1765634728639,0.46121521,90308.0,90307.0,0.75035]
[1765634733034,0.10041521,90308.0,90307.0,0.75035]
[1765634733233,0.46121521,90308.0,90307.0,0.75035]
[1765634733641,0.10041521,90308.0,90307.0,0.75035]